Cogmind - Beta 10.2 @@@ ROGUE MODE // 2021.01.09 @ 14:20:42 Player: CrossedViper Result: Destroyed by as-00053 with Assembled Heavy Rifle Performance ------------- Evolutions (1) 500 Regions Visited (5) 1000 Robots Destroyed (40) 200 Value Destroyed (923) 923 Prototype IDs (27) 540 Alien Tech Used (0) 0 Bonus (-617) -617 TOTAL SCORE: 2546 Bonus ------- Aligned with FarCom 300 Friendly Fire -917 Cogmind --------- Core Integrity 0/400 Matter 255/300 Energy 105/280 System Corruption 3% Temperature Cool (5) Movement Core (3050) Ox60 Location -9/Exiles Parts ------- > --- POWER (1) -------- Heavy Ion Engine > --- PROPULSION (2) --- (None) > --- UTILITY (4) ------ Humpback Humpback > --- WEAPON (2) ------- Latent Energy Streamer Improved Assault Rifle > --- INVENTORY (44) --- Heavy Ion Engine Large Storage Unit Humpback High-capacity Matter Pod (200) Advanced Targeting Computer Advanced Targeting Computer Core Shielding Light Armor Plating Hardened Light Armor Plating Ion Cannon Heavy Assault Rifle Improved Assault Rifle Longsword +1 Blade Trap Blade Trap Blade Trap Peak State ------------ > --- POWER ------------ Heavy Ion Engine > --- PROPULSION ------- Light Treads Light Treads > --- UTILITY ---------- Humpback Bomb Drone Bay > --- WEAPON ----------- Improved Assault Rifle Improved Assault Rifle > --- INVENTORY -------- Heavy Ion Engine Light Treads Large Storage Unit Humpback Humpback High-capacity Matter Pod Advanced Targeting Computer Advanced Targeting Computer Core Shielding Light Armor Plating Hardened Light Armor Plating Latent Energy Streamer Ion Cannon Heavy Assault Rifle Improved Assault Rifle Improved Assault Rifle Longsword +1 Blade Trap Blade Trap Blade Trap [Rating: 32] Favorites ----------- Power Heavy Ion Engine Engine Heavy Ion Engine Propulsion Light Treads Treads Light Treads Leg Aluminum Leg Wheel Wheel Utility Large Storage Unit Device Disposable Heat Sink Storage Large Storage Unit Processor Transport Network Coupler Protection Hardened Light Armor Plating Weapon Improved Assault Rifle Energy Gun Small Laser Energy Cannon Latent Energy Streamer Ballistic Gun Improved Assault Rifle Ballistic Cannon Flak Cannon Launcher Rocket Launcher Special Weapon Mining Laser Impact Weapon Mace Build | -11 -10 -10 -9 -9 -9 ------- Run | Scr Mat Min Mat Min Exi Slots Evolved 2 | . . . 2 . . Power . | . . . . . . Propulsion . | . . . . . . Utility 2 | . . . 2 . . Weapon . | . . . . . . Parts Attached 47 | . 4 6 23 5 9 Power 5 | . . 1 4 . . Engine 5 | . . 1 4 . . Core . | . . . . . . Reactor . | . . . . . . Propulsion 12 | . 2 2 6 1 1 Treads 8 | . 1 1 4 1 1 Leg . | . . . . . . Wheel 4 | . 1 1 2 . . Hover . | . . . . . . Flight . | . . . . . . Utility 13 | . 2 . 4 2 5 Device 3 | . . . 1 1 1 Storage 4 | . 2 . . . 2 Processor 1 | . . . 1 . . Hackware . | . . . . . . Protection 5 | . . . 2 1 2 Artifact . | . . . . . . Weapon 17 | . . 3 9 2 3 Energy Gun 3 | . . 2 1 . . Energy Cannon 1 | . . . . . 1 Ballistic Gun 4 | . . . 1 1 2 Ballistic Cannon 5 | . . . 4 1 . Launcher 1 | . . . 1 . . Special Weapon 2 | . . 1 1 . . Impact Weapon 1 | . . . 1 . . Slashing Weapon . | . . . . . . Piercing Weapon . | . . . . . . Special Melee Weapon . | . . . . . . Unidentified Prototypes 4 | . . . 2 1 1 Parts Lost 20 | . . 10 4 . 6 Power 2 | . . 2 . . . Propulsion 7 | . . 3 1 . 3 Utility 2 | . . . 1 . 1 Weapon 9 | . . 5 2 . 2 Highest Loss Streak 10 | . . 10 4 . 6 Average Slot Usage (%) 91 | . 92 93 81 97 89 Engine 10 | . 14 12 8 11 11 Treads 17 | . 5 14 11 22 21 Wheel 3 | . 5 13 6 . . Storage 21 | . 20 28 22 22 15 Processor 2 | . . . 7 1 . Protection 12 | . . . 6 17 19 Energy Gun 3 | . 28 24 . . . Ballistic Gun 10 | . . . 1 13 22 Ballistic Cannon 6 | . . . 10 8 . Impact Weapon 1 | . . . 4 . . Naked Turns . | . . . . . . Heaviest Build 174 | 12 40 40 57 57 174 Greatest Support 40 | 20 20 20 40 40 40 Greatest Overweight (x) 12 | . 3 3 12 1 8 Average Overweight (x) 1 | . 1 2 1 1 1 Largest Inventory Capacity 44 | . 16 16 16 16 44 Average Capacity 17 | . 12 16 16 16 22 Most Carried 24 | . 7 10 16 16 24 Average Carried 13 | . 5 8 9 15 19 Final Capacity 44 | 6 16 16 16 16 44 Final Carried 17 | 6 5 4 16 16 17 Class Distribution -------------------- 83% | Mutant 14% | Hauler-Mutant Dominant Class ---------------- Mutant | -10/Materials Mutant | -10/Mines Mutant | -9/Materials Mutant | -9/Mines Hauler-Mutant | -9/Exiles Resources | -11 -10 -10 -9 -9 -9 ----------- Run | Scr Mat Min Mat Min Exi Matter Collected 1207 | 200 . 55 666 156 130 Remotely . | . . . . . . Salvage Created 1541 | . 92 . 930 499 20 Parts 77 | . 1 . 44 32 . Haulers Intercepted 3 | . . . 3 . . Recyclers Shooed 7 | . 2 . 5 . . Parts Field Recycled . | . . . . . . Retrieved Matter . | . . . . . . Parts Self-Destructed . | . . . . . . Prevented . | . . . . . . Kills | -11 -10 -10 -9 -9 -9 ------- Run | Scr Mat Min Mat Min Exi Combat Hostiles Destroyed 23 | . . . 16 6 1 Guns 7 | . . . 3 3 1 Cannons 12 | . . . 9 3 . AOE 4 | . . . 4 . . Classes Destroyed 10 | . 1 . 6 2 1 Worker 5 | . . . 5 . . Tunneler 2 | . . . . 2 . Hauler 3 | . . . 3 . . Recycler 6 | . 1 . 4 1 . Operator 1 | . . . 1 . . Swarmer 1 | . . . 1 . . Grunt 13 | . . . 10 3 . Brawler 1 | . . . . 1 . Sentry 7 | . . . 5 2 . Assembled 1 | . . . . . 1 Best Kill Streak 7 | . 1 . 7 5 1 Combat Bots Only 6 | . . . 6 4 1 Max Kills in Single Turn 2 | . 1 . 2 1 1 Gunslinging . | . . . . . . Exploded 1 | . . . 1 . . Melee . | . . . . . . Uniques/NPCs Destroyed 1 | . . . . 1 . YI-UF0 (-9/Mines) Combat | -11 -10 -10 -9 -9 -9 -------- Run | Scr Mat Min Mat Min Exi Damage Taken 3525 | . 24 830 879 169 1623 Core 584 | . . 183 198 26 177 Absorbed by Shields . | . . . . . . Core Remaining (%) 63 | 100 . 26 . . . Volleys Fired 137 | . 8 4 104 18 3 Largest 2 | . 2 2 2 2 2 Hottest 100 | . 90 90 100 67 83 Shots Fired 182 | . 16 8 117 35 6 Gun 102 | . 16 8 49 24 5 Cannon 67 | . . . 55 11 1 Launcher 10 | . . . 10 . . Special 3 | . . . 3 . . Kinetic 134 | . . . 94 35 5 Thermal 27 | . 16 8 3 . . Explosive 10 | . . . 10 . . Electromagnetic 11 | . . . 10 . 1 Robot Hit Streak 16 | . 3 2 16 8 4 Robot Miss Streak 4 | . 4 3 4 3 1 Penetration Max . | . . . . . . Secondary Targets . | . . . . . . Shots Hit Robots 135 | . 7 3 97 24 4 Core Hits 75 | . 4 1 45 21 4 Critical Hits . | . . . . . . Critical Kills . | . . . . . . Critical Parts Destroyed . | . . . . . . Melee Attacks 9 | . . . 9 . . Impact 9 | . . . 9 . . Slashing . | . . . . . . Piercing . | . . . . . . Sneak Attacks 2 | . . . 2 . . Combat Hostiles . | . . . . . . Follow-up Attacks . | . . . . . . Damage Inflicted 2854 | . 80 49 2195 396 134 Guns 1102 | . 80 49 633 290 50 Cannons 869 | . . . 759 106 4 Explosions 618 | . . . 538 . 80 Melee 193 | . . . 193 . . Ramming . | . . . . . . Kinetic 1728 | . . . 1282 396 50 Thermal 254 | . 80 49 125 . . Explosive 485 | . . . 485 . . Electromagnetic 194 | . . . 110 . 84 Impact 193 | . . . 193 . . Slashing . | . . . . . . Piercing . | . . . . . . Highest Corruption 3 | . . . . 2 3 Average Corruption 2 | . . . . 2 2 Corruption Purged . | . . . . . . Effects 16 | . . . . 9 7 Message Errors 4 | . . . . 2 2 Heat Flow Errors 3 | . . . . 1 2 Energy Discharges 4 | . . . . 3 1 Data Loss (minor) 3 | . . . . 1 2 Targeting Errors 1 | . . . . 1 . Weapon Failures 1 | . . . . 1 . Overload Shots . | . . . . . . Overflow Damage 77 | . . . 77 . . Projectiles 2 | . . . 2 . . Explosions 75 | . . . 75 . . Melee . | . . . . . . Knockbacks 11 | . . . 10 1 . Impact 1 | . . . 1 . . Kinetic 9 | . . . 8 1 . Secondary 1 | . . . 1 . . Self-Inflicted Damage 150 | . . . 150 . . Shots 3 | . . . 3 . . Rammed . | . . . . . . Targets Rammed . | . . . . . . Kicked . | . . . . . . Crushed . | . . . . . . Highest Temperature 265 | . 240 100 120 265 253 Average Temperature 60 | . 123 51 29 52 102 Received Heat Transfer 409 | . . 9 291 69 40 Siege Activations . | . . . . . . Robots Corrupted . | . . . . . . Combat Hostiles . | . . . . . . Parts Fried . | . . . . . . Impact Corruptions . | . . . . . . Robots Melted . | . . . . . . Combat Hostiles . | . . . . . . Parts Melted 1 | . 1 . . . . Heat Transferred 535 | . 211 124 200 . . Parts Sabotaged . | . . . . . . Parts Stolen . | . . . . . . Parts Stripped . | . . . . . . Power Chain Reactions . | . . . . . . Missiles Intercepted . | . . . . . . Latent Energy Used 57 | . . . . . 57 LE Corruption 1 | . . . . . 1 Alert | -11 -10 -10 -9 -9 -9 ------- Run | Scr Mat Min Mat Min Exi Peak Influence 387 | . 20 7 387 225 . Initial 150 | . . 7 . 150 . Average 119 | . 16 5 219 95 . Maximum Alert Level 1 | . . . 1 1 . Low Security (%) 63 | . 100 100 32 69 . Level 1 36 | . . . 67 30 . Level 2 . | . . . . . . Level 3 . | . . . . . . Level 4 . | . . . . . . Level 5 . | . . . . . . High Security . | . . . . . . Max Security . | . . . . . . Squads Dispatched 3 | . 1 . 2 . . Investigation . | . . . . . . Extermination . | . . . . . . Reinforcement 3 | . 1 . 2 . . Assault . | . . . . . . Garrison . | . . . . . . Intercept . | . . . . . . Construction Impeded . | . . . . . . Haulers Reinforced . | . . . . . . Stealth | -11 -10 -10 -9 -9 -9 --------- Run | Scr Mat Min Mat Min Exi Distress Signals 5 | . . . 5 . . Communications Jammed . | . . . . . . Distress Signals . | . . . . . . Times Spotted 68 | . 1 11 27 6 23 Peak Tracking Total 15 | . 1 9 5 3 15 Tactical Retreats 4 | . . 1 . . 3 Traps | -11 -10 -10 -9 -9 -9 ------- Run | Scr Mat Min Mat Min Exi Traps Triggered 4 | . 1 . 3 . . Indirectly . | . . . . . . Trap Hack Attempts . | . . . . . . Triggered . | . . . . . . Disarmed . | . . . . . . Reprogrammed . | . . . . . . Reused . | . . . . . . Traps Extracted . | . . . . . . Installed . | . . . . . . Triggered . | . . . . . . Machines | -11 -10 -10 -9 -9 -9 ---------- Run | Scr Mat Min Mat Min Exi Machines Disabled 3 | . . . 3 . . Max in Single Turn 3 | . . . 3 . . Machines Sabotaged . | . . . . . . Garrisons Compromised . | . . . . . . Overloaded Fab Kills . | . . . . . . Fab Network Shutdowns . | . . . . . . Hacking | -11 -10 -10 -9 -9 -9 --------- Run | Scr Mat Min Mat Min Exi Machines Accessed 7 | . 1 . 4 1 1 Terminals 5 | . 1 . 4 . . Fabricators . | . . . . . . Repair Stations . | . . . . . . Recycling Units . | . . . . . . Scanalyzers . | . . . . . . Garrison Access . | . . . . . . Total Hacks 17 | . 2 . 13 1 1 Successful 12 | . 1 . 9 1 1 Failed 5 | . 1 . 4 . . Catastrophic . | . . . . . . Database Lockouts . | . . . . . . Manual 15 | . 2 . 12 . 1 Terminals 15 | . 2 . 13 . . Fabricators . | . . . . . . Repair Stations . | . . . . . . Recycling Units . | . . . . . . Scanalyzers . | . . . . . . Garrison Access . | . . . . . . Terminal Hacks 8 | . 1 . 5 1 1 Robot Analysis 3 | . 1 . 2 . . Open Door 1 | . . . . 1 . Branch Access Points 2 | . . . 2 . . Alert Level 1 | . . . 1 . . EX-Prototype ID Bank 1 | . . . . . 1 Fabricator Hacks . | . . . . . . Repair Station Hacks . | . . . . . . Recycling Unit Hacks . | . . . . . . Scanalyzer . | . . . . . . Garrison Access Hacks . | . . . . . . Unauthorized Hacks 4 | . . . 4 . . Terminals 4 | . . . 4 . . Track 3 | . . . 3 . . Botnet 1 | . . . 1 . . Fabricators . | . . . . . . Repair Stations . | . . . . . . Recycling Units . | . . . . . . Scanalyzers . | . . . . . . Garrison Access . | . . . . . . Data Cores Recovered . | . . . . . . Used . | . . . . . . Hacking Detections 4 | . 1 . 3 . . Full Trace Events . | . . . . . . Feedback Events . | . . . . . . Feedback Blocked . | . . . . . . Robot Schematics Acquired . | . . . . . . Robots Built . | . . . . . . Matter . | . . . . . . Time . | . . . . . . Total Robot Build Rating . | . . . . . . Part Schematics Acquired . | . . . . . . Parts Built . | . . . . . . Matter . | . . . . . . Time . | . . . . . . Total Part Build Rating . | . . . . . . Parts Repaired . | . . . . . . Time . | . . . . . . Parts Recycled . | . . . . . . Recycled Matter . | . . . . . . Retrieved Matter . | . . . . . . Retrieved Components . | . . . . . . Parts Scanalyzed . | . . . . . . Part Schematics Acquired . | . . . . . . Parts Damaged . | . . . . . . Bothacking | -11 -10 -10 -9 -9 -9 ------------ Run | Scr Mat Min Mat Min Exi Used RIF Installer . | . . . . . . Robots Hacked . | . . . . . . Non-combat . | . . . . . . Combat . | . . . . . . Robot Hacks Applied . | . . . . . . Relay Couplers Released . | . . . . . . Robots Rewired . | . . . . . . Allies Hacked . | . . . . . . Hacks Repelled . | . . . . . . Allies | -11 -10 -10 -9 -9 -9 -------- Run | Scr Mat Min Mat Min Exi Total Allies . | . . . . . . Largest Group . | . . . . . . Highest-Rated Group . | . . . . . . Highest-Rated Ally . | . . . . . . Total Orders . | . . . . . . Ally Attacks 12 | . . . . . 12 Total Damage 190 | . . . . . 190 Kills . | . . . . . . Allies Corrupted . | . . . . . . Allies Melted . | . . . . . . Turrets Deployed 1 | . . . . . 1 Intel | -11 -10 -10 -9 -9 -9 ------- Run | Scr Mat Min Mat Min Exi Robot Analysis Total 3 | . 1 . 2 . . Derelict Logs Recovered 2 | . . 1 . 1 . Drone Launches 12 | . . . . . 12 Drone Recoveries 1 | . . . . . 1 Exploration | -11 -10 -10 -9 -9 -9 ------------- Run | Scr Mat Min Mat Min Exi Turns Passed 3125 | . 158 277 773 1267 650 Spaces Moved 1638 | 1 102 224 330 661 320 Core 1 | . . . 1 . . Treads 1144 | . . 13 150 661 320 Legs 48 | 1 47 . . . . Wheels 445 | . 55 211 179 . . Hover . | . . . . . . Flight . | . . . . . . Fastest Speed 90 | 120 110 110 90 180 180 Average Speed 161 | 120 124 114 136 180 194 Slowest Speed 650 | 120 150 180 650 180 320 Overloaded Moves . | . . . . . . Propulsion Burnouts . | . . . . . . Robots Hopped . | . . . . . . Cave-ins Triggered . | . . . . . . Exploration Rate (%) 45 | 2 21 52 35 99 61 Regions Visited 5 Branch Regions 3 Pre-discovered Areas 2 | . . 1 . 1 . Known Exits Taken 1 | . . . 1 . . Unknown Exits Taken 4 | 1 1 1 . 1 . Scrap Searched 2 | . . 1 . 1 . Spaces Dug . | . . . . . . Terrain Destroyed 118 | . . . 118 . . Melee . | . . . . . . Projectile . | . . . . . . AOE 118 | . . . 118 . . Terrain Rammed . | . . . . . . Walls Destroyed . | . . . . . . Machines Disabled . | . . . . . . Actions | -11 -10 -10 -9 -9 -9 --------- Run | Scr Mat Min Mat Min Exi Total 1927 | . 117 238 518 708 346 Wait 12 | . . . 10 1 1 Move 1633 | . 101 223 329 660 320 Hop . | . . . . . . Pick Up 53 | . 1 5 29 11 7 Fast Attach 15 | . 2 . 10 2 1 Attach 26 | . 2 6 9 2 7 Detach 1 | . . . . . 1 Swap 6 | . . . 4 1 1 Drop 35 | . 3 . 14 13 5 Fire 137 | . 8 4 104 18 3 Melee 9 | . . . 9 . . Ram . | . . . . . . Kick . | . . . . . . Crush . | . . . . . . Escape Stasis . | . . . . . . Rewire . | . . . . . . Trap . | . . . . . . Miscellaneous . | . . . . . . Route ------- -11/Scrapyard -10/Materials -10/Mines -9/Materials (discovered 3 exits: [*Mat] / *Min x2) -9/Mines (discovered 4 exits: [*Mat x2] / *Exi / [*Zio]) -9/Exiles History --------- Turn | Location | Event 1 | -11/Scrapyard | Discovered new exit (range 0) 1 | -11/Scrapyard | Entered Materials 128 | -10/Materials | Discovered new exit (range 15) 159 | -10/Materials | Entered Mines 178 | -10/Mines | Met a Derelict bent on vengeance 204 | -10/Mines | Learned location of Recycling (-7) 234 | -10/Mines | A weapon hastily lodged in a ceiling crevice suddenly fell to the ground 267 | -10/Mines | Received a Rocket Launcher from a helpful Derelict 310 | -10/Mines | Build established: Mutant 338 | -10/Mines | Discovered new exit (range 6) 378 | -10/Mines | Assembled infested the area 409 | -10/Mines | Core integrity fell below 50% 436 | -10/Mines | Entered Materials 436 | -9/Materials | Evolved 2 slots: Utility x2 445 | -9/Materials | Lost 10 parts (2p3n5w) 604 | -9/Materials | Identified exit to Mines 616 | -9/Materials | Lost 4 parts (1n1u2w) 923 | -9/Materials | Discovered new exit (range 16) 1209 | -9/Materials | Entered Mines 1216 | -9/Mines | Core integrity fell below 50% 1270 | -9/Mines | Discovered new exit (range 11) 1279 | -9/Mines | Learned location of Zion (-7) 1285 | -9/Mines | YI-UF0 nonchalantly dropped a Grenade Launcher on the ground 1432 | -9/Mines | Found a damaged Exp. Sensor Array with a note attached 1436 | -9/Mines | Found Prototype Device 1436 | -9/Mines | Identified Exp. Sensor Array 1523 | -9/Mines | Discovered new exit (range 9) 1651 | -9/Mines | A Derelict revealed a hidden shortcut to a safe place 2224 | -9/Mines | Found the Drone Emporium 2234 | -9/Mines | Found Prototype Device 2321 | -9/Mines | Found a hidden stash of uninstalled traps 2405 | -9/Mines | Destroyed YI-UF0 2469 | -9/Mines | Deemed a non-threat by the Exiles lab entrance 2469 | -9/Mines | Discovered new exit (range 5) 2476 | -9/Mines | Entered Exiles 2521 | -9/Exiles | Met 8R-AWN 2554 | -9/Exiles | Met EX-HEX 2624 | -9/Exiles | Met EX-DEC 2871 | -9/Exiles | Met EX-BIN 2901 | -9/Exiles | Aligned with FarCom system 2903 | -9/Exiles | Given EX-Vault access code 2949 | -9/Exiles | Opened EX-Vault 2961 | -9/Exiles | Build established: Hauler-Mutant 2961 | -9/Exiles | Found Longsword +1 2966 | -9/Exiles | Found Latent Energy Streamer 3009 | -9/Exiles | Warned to stay clear of 0b10 Research branches 3032 | -9/Exiles | Exiles lab attacked by MAIN.C 3088 | -9/Exiles | Attacked by the Exiles 3095 | -9/Exiles | Identified Bomb Drone Bay 3104 | -9/Exiles | Core integrity fell below 20% 3120 | -9/Exiles | DAS Turret deployed 3126 | -9/Exiles | Destroyed by as-00053 with Assembled Heavy Rifle Last Messages --------------- 03120_ Imp. Assault Rifle destroyed. 03120_ HV Slug penetrates Earth. 03120_ Penetrated by HV Slug. 03120_ HV Slug penetrates Earth. 03121_ Destroyed Asb. Hover Unit. 03121_ as-95116 knocked back. 03122_ Penetrated by HV Slug. 03122_ HV Slug penetrates Earth. 03122_ Penetrated by HV Slug. 03122_ Critical hit. 03122_ Lgt. Treads destroyed. 03122_ HV Slug penetrates Earth. 03122_ Bomb Drone knocked back. 03123_ as-47681 knocked back. 03124_ Penetrated by HV Slug. 03124_ HV Slug penetrates Earth. 03124_ Penetrated by HV Slug. 03124_ HV Slug penetrates Earth. 03125_ as-89695 destroyed. 03125_ Destroyed Asb. Rifle. Map ----- +----------------------------------------------------+ | ??????????????????????????????????????????"###??# | | ????????????????????????????????????????????????# | | ????????????????????????????????????????????????# | | ???????????????????????????????????????????????## | | ??????????????#######?????????????????????????#" | | ######???????#!! "#?????????????????????????#" | | #""#??????# "#?????????????????????????#" | | ####### "#?????????????????????????#" | | # # ""#????????????####?????????#" | | " ""#???????????? """????????#" | | # " ""#????????????" """#???????## | | ?# t ###???????????"" #????????# | | ????# % #????????????#"" #????????#" | | ????### ##???????????#"" "#????????#" | | ??????# "##??????????? ""?????????#" | | ?####### ;###??????????" "?????????##" | | ?# ! """ ######?????# #????????##"" | | ?#! # " ##??### ###?######"" | | ?#! "#### ! ;####X# #"###""""""" | | ?#! #####" """" " "" | | ?# !""""""###?# ; "" " | | ?##########?????## " | | ???????????????# # # n a | | ???????????????# ! ! % | | ?????????????????## t! a | | ?????????????????# @ g | | ?????????????????### % | | ???????????????????##### """" | | ???????????????????????# ##### | | ???????????????????????# ""##???? | | ???????????????????????# % a """##????? | | ???????????????????????# """##?????? | | ???????????????????????# a ""#??????? | | ???????????????????????# ##??????? | | ???????????????????????# #?????? | | ???????????????????????## a ?????? | | ????????????????????????##" ?????? | | ?????????????????????????#"""" ?????? | | ?????????????????????????## ??????? | | ??????????????????????????#" ???????? | | ???????????????????????????"""" ???????? | | ???????????????????????????"" ????????? | | ?????????????????????????????? ??????????? | | ?????????????????????????????? ????????????? | | ??????????????????????????????? ???????????????? | | ?????????????????????????????????????????????????? | | ?????????????????????????????????????????????????? | | ?????????????????????????????????????????????????? | | ?????????????????????????????????????????????????? | | ?????????????????????????????????????????????????? | +----------------------------------------------------+ Best States ------------- Heat Dissipation 28 Coolant Potential 50 Energy Generation 14 Energy Capacity 280 Matter Stores 300 Matter Capacity 300 Sight Range 16 Terrain Scan Density 10 Armor Coverage 300 Core Shielding 20 Evasion (%) 42 Recoil Reduction 2 Item Schematics ----------------- None Robot Schematics ------------------ None Fabricated ------------ Nothing Alien Tech Used ----------------- None Achievements -------------- None Challenges ------------ None Game ------ Seed SurgePropulsionSink Manual? 0 Play Time 00:17:54 Cumulative 233.1 hours Start 2021.01.09 @ 14:05:43 End 2021.01.09 @ 14:20:42 Sessions 1 Manual Loads 0 Difficulty Rogue Special Mode None Game No. 210 Rogue 203 Adventurer 0 Explorer 7 Win Type - Total 5 Types 1/0/4/0/0/0/0/0/0 Lore% 71 Gallery% 91 Achievement% 69 Wizard Run 0 Options --------- ASCII 0 Keyboard 0 Movement Numpad Keybinds 0 Fullscreen 1 Font 18/X11 Map View 76x50 Tactical HUD 1 Map Filters NONE Filters NONE Steam 1 RUN: 82f9011c-f0e0-448a-afa8-e3a7d213973c